fUSD/lending_fUSD_20240630
["ID","MTS","AMOUNT","RATE_DAILY","PERIOD"]
[330776840,1719774638880,-403028.5804966,0.00014,2]
[330776841,1719774638890,-1000.0,0.00014,2]
[330776842,1719774638900,-1000.0,0.00014,2]
[330776843,1719774638910,-601815.6063897,0.00014,2]
[330776844,1719774638922,-719.922077,0.00014,2]
[330776845,1719774638938,-623.44199861,0.00014,2]
[330776846,1719774638951,-2578.26443151,0.00014,2]
[330776847,1719774638963,-16220.79603987,0.00014,2]
[330776848,1719774639070,-38434.58755061,0.00014,2]
[330776849,1719774639083,-3146.7938,0.00014,2]
[330776850,1719774639096,-30082.50000003,0.00014,2]
[330776851,1719774639109,-321.89,0.00014,2]
[330776852,1719774639122,-6424.98178497,0.00014,2]
[330776853,1719774639136,-292.04521374,0.00014,2]
[330776854,1719774639148,-394.14575585,0.00014,2]
[330776855,1719774639160,-6675.86734999,0.00014,2]
[330776951,1719774640144,-148704.22827191,0.00014,2]
[330776953,1719774640157,-18771.83584435,0.00014,2]
[330776955,1719774640169,-2139.72949076,0.00014,2]
[330776957,1719774640181,-78967.77813312,0.00014,2]
[330776974,1719774640342,-647910.82546174,0.00014,2]
[330776976,1719774640351,-700.0,0.00014006,2]
[330776978,1719774640361,-866.57,0.00014009,3]
[330776980,1719774640371,-705.68,0.00014009,3]
[330776982,1719774640380,-500.0,0.00014009,3]
[330776984,1719774640390,-500.0,0.00014009,3]
[330776986,1719774640399,-689.81,0.00014109,3]
[330776988,1719774640409,-401.39663516,0.00014109,3]
[330776990,1719774640418,-866.57,0.00014118,3]
[330776992,1719774640428,-705.68,0.00014118,3]
[330776994,1719774640437,-151.36584301,0.00014118,3]
[330776996,1719774640447,-500.0,0.00014118,3]
[330776998,1719774640456,-173.0,0.00014176,2]
[330777000,1719774640466,-689.81,0.00014218,3]
[330777002,1719774640475,-866.57,0.00014228,3]
[330777004,1719774640484,-705.68,0.00014228,3]
[330777006,1719774640494,-500.0,0.00014228,3]
[330777008,1719774640503,-689.81,0.00014328,3]
[330777010,1719774640512,-866.57,0.00014338,3]
[330777012,1719774640521,-705.68,0.00014338,3]
[330777014,1719774640531,-500.0,0.00014338,3]
[330777016,1719774640541,-1000.0,0.0001434,2]
[330777018,1719774640551,-689.81,0.00014438,3]
[330777020,1719774640560,-866.57,0.00014447,3]
[330777022,1719774640570,-705.68,0.00014447,3]
[330777024,1719774640579,-500.0,0.00014447,3]
[330777026,1719774640588,-689.81,0.00014547,3]
[330777028,1719774640597,-866.57,0.00014557,3]
[330777030,1719774640606,-705.68,0.00014557,3]
[330777032,1719774640615,-500.0,0.00014557,3]
[330777034,1719774640624,-689.81,0.00014657,3]
[330777036,1719774640634,-866.57,0.00014666,3]
[330777038,1719774640643,-705.68,0.00014666,3]
[330777040,1719774640652,-500.0,0.00014666,3]
[330777042,1719774640662,-12070.43899623,0.00014673,2]
[330777044,1719774640671,-853.72,0.00014683,2]
[330777046,1719774640681,-1053.12,0.00014683,2]
[330777047,1719774640690,-418.84,0.00014683,2]
[330777048,1719774640700,-418.84,0.00014683,2]
[330777049,1719774640709,-418.84,0.00014683,2]
[330777050,1719774640719,-415.46,0.00014683,2]
[330777051,1719774640728,-4847.25649043,0.00014755,2]
[330777052,1719774640737,-689.81,0.00014766,3]
[330777053,1719774640747,-866.57,0.00014776,3]
[330777054,1719774640756,-705.68,0.00014776,3]
[330777055,1719774640766,-854.117738,0.00014795,2]
[330777056,1719774640775,-700.0,0.00014828,2]
[330777057,1719774640784,-689.81,0.00014876,3]
[330777058,1719774640793,-866.57,0.00014886,3]
[330777060,1719774640802,-705.68,0.00014886,3]
[330777062,1719774640812,-155.0,0.00014899,2]
[330777064,1719774640821,-336.62756721,0.00014966,2]
[330777066,1719774640831,-336.62756721,0.00014966,2]
[330777068,1719774640841,-689.81,0.00014986,3]
[330777070,1719774640850,-373.6413508,0.0001499,2]
[330777072,1719774640859,-1414.5388673,0.0001499,2]
[330777074,1719774640869,-866.57,0.00014995,3]
[330777076,1719774640878,-705.68,0.00014995,3]
[330777078,1719774640887,-5000.0,0.00015,2]
[330777080,1719774640896,-3967.8675886,0.00015,2]
[330777082,1719774640905,-622.7781919,0.00015,2]
[330777084,1719774640914,-945946.87148998,0.00015,2]
[330777086,1719774640923,-490.0,0.00015,2]
[330777088,1719774640934,-6442.0,0.00015,2]
[330777090,1719774640944,-231885.50707866,0.00015,2]
[330777092,1719774640953,-151.0,0.00015,2]
[330777094,1719774640963,-151.0,0.00015,2]
[330777096,1719774640972,-261.539984,0.00015,2]
[330777098,1719774640982,-261.539984,0.00015,2]
[330777100,1719774640991,-261.539984,0.00015,2]
[330777102,1719774641001,-261.539984,0.00015,2]
[330777104,1719774641010,-151.0,0.00015,2]
[330777106,1719774641019,-1047.927568,0.00015,2]
[330777108,1719774641028,-1047.927568,0.00015,2]
[330777110,1719774641037,-1047.927568,0.00015,2]
[330777112,1719774641046,-1047.927568,0.00015,2]
[330777114,1719774641055,-151.0,0.00015,2]
[330777116,1719774641064,-151.0,0.00015,2]
[330777118,1719774641074,-689.81,0.00015095,3]
[330777120,1719774641084,-11481.0,0.000151,3]
[330777122,1719774641093,-618.86,0.000151,2]
[330777124,1719774641103,-866.57,0.00015105,3]
[330777126,1719774641112,-705.68,0.00015105,3]
[330777128,1719774641121,-6585.86191682,0.00015112,2]
[330777130,1719774641131,-11481.0,0.000152,5]
[330777132,1719774641141,-689.81,0.00015205,3]
[330777134,1719774641150,-866.57,0.00015214,3]
[330777136,1719774641160,-705.68,0.00015214,3]
[330777138,1719774641169,-444.7,0.00015259,3]
[330777140,1719774641179,-689.81,0.00015314,3]
[330777142,1719774641189,-866.57,0.00015324,3]
[330777144,1719774641199,-705.68,0.00015324,3]
[330777146,1719774641213,-689.81,0.00015424,3]
[330777148,1719774641222,-866.57,0.00015433,3]
[330777150,1719774641232,-705.68,0.00015433,3]
[330777152,1719774641241,-12070.43899623,0.00015445,2]
[330777154,1719774641252,-689.81,0.00015533,3]
[330777156,1719774641261,-866.57,0.00015543,3]
[330777158,1719774641270,-705.68,0.00015543,3]
[330777160,1719774641281,-821.0,0.000156,2]
[330777162,1719774641290,-854.117738,0.00015616,2]
[330777164,1719774641299,-418.84,0.00015637,2]
[330777166,1719774641308,-689.81,0.00015643,3]
[330777168,1719774641318,-700.0,0.0001565,2]
[330777170,1719774641327,-866.57,0.00015653,3]
[330777172,1719774641336,-705.68,0.00015653,3]
[330777174,1719774641346,-3974.0,0.000157,2]
[330777176,1719774641355,-4847.25649043,0.0001571,2]
[330777178,1719774641364,-150.0,0.0001575,2]
[330777180,1719774641373,-689.81,0.00015753,3]
[330777182,1719774641383,-866.57,0.00015762,3]
[330777184,1719774641392,-705.68,0.00015762,3]
[330777186,1719774641402,-253.65,0.00015831,2]
[330777188,1719774641412,-167.19,0.00015831,2]
[330777190,1719774641421,-689.81,0.00015862,3]
[330777192,1719774641431,-866.57,0.00015872,3]
[330777194,1719774641440,-705.68,0.00015872,3]
[330777196,1719774641450,-1000.0,0.00015934,2]
[330777198,1719774641459,-689.81,0.00015972,3]
[330777200,1719774641468,-1906.74,0.00015976,2]
[330777202,1719774641477,-779.559,0.00015976,2]
[330777204,1719774641487,-465.684,0.00015976,2]
[330777206,1719774641495,-1662.115,0.00015976,2]
[330777207,1719774641504,-1194.0,0.00015976,2]
[330777209,1719774641514,-342.546,0.00015976,2]
[330777212,1719774641523,-866.57,0.00015981,3]
[330777213,1719774641533,-705.68,0.00015981,3]
[330777216,1719774641543,-999.58,0.00016,2]
[330777218,1719774641552,-177.02,0.00016015,2]
[330777220,1719774641561,-689.81,0.00016081,3]
[330777221,1719774641570,-866.57,0.00016091,3]
[330777223,1719774641580,-705.68,0.00016091,3]
[330777225,1719774641589,-419.783,0.00016171,2]
[330777227,1719774641599,-689.81,0.00016191,3]
[330777230,1719774641609,-866.57,0.00016201,3]
[330777232,1719774641618,-705.68,0.00016201,3]
[330777233,1719774641627,-12070.43899623,0.00016218,2]
[330777235,1719774641636,-250.77597332,0.00016298,2]
[330777237,1719774641645,-689.81,0.00016301,3]
[330777239,1719774641655,-866.57,0.0001631,3]
[330777241,1719774641664,-705.68,0.0001631,3]
[330777243,1719774641674,-1626.71521,0.0001636,2]
[330777245,1719774641683,-689.81,0.0001641,3]
[330777247,1719774641692,-866.58089456,0.0001642,3]
[330777249,1719774641701,-705.7,0.0001642,3]
[330777251,1719774641710,-854.117738,0.00016438,2]
[330777253,1719774641719,-1340.45,0.00016438,2]
[330777255,1719774641729,-174.42,0.00016466,2]
[330777257,1719774641739,-150.0,0.00016466,2]
[330777259,1719774641748,-150.0,0.00016466,2]
[330777261,1719774641757,-150.0,0.00016466,2]
[330777263,1719774641766,-700.0,0.00016472,2]
[330777265,1719774641776,-689.86,0.0001652,3]
[330777267,1719774641785,-1759.05412823,0.00016566,2]
[330777269,1719774641795,-853.72,0.00016612,2]
[330777271,1719774641804,-853.72,0.00016612,2]
[330777273,1719774641813,-853.72,0.00016612,2]
[330777275,1719774641822,-853.72,0.00016612,2]
[330777277,1719774641831,-853.72,0.00016612,2]
[330777279,1719774641840,-418.84,0.00016612,2]
[330777281,1719774641849,-418.84,0.00016612,2]
[330777283,1719774641858,-1313.72,0.00016612,2]
[330777285,1719774641867,-418.84,0.00016612,2]
[330777287,1719774641876,-853.72,0.00016612,2]
[330777289,1719774641885,-418.84,0.00016612,2]
[330777291,1719774641895,-418.84,0.00016612,2]
[330777293,1719774641904,-10000.0,0.00016633,2]
[330777295,1719774641913,-4847.25649043,0.00016666,2]
[330777297,1719774641922,-152.84332,0.00016799,2]
[330777299,1719774641933,-151.0,0.00016969,2]
[330777301,1719774641943,-151.0,0.00016969,2]
[330777303,1719774641955,-261.539984,0.00016969,2]
[330777305,1719774641964,-261.539984,0.00016969,2]
[330777307,1719774641973,-1047.927568,0.00016969,2]
[330777309,1719774641983,-1047.927568,0.00016969,2]
[330777311,1719774641992,-151.0,0.00016969,2]
[330777313,1719774642001,-477343.87345746,0.00016969,2]
[330777315,1719774642015,-10693.98449672,0.00016969,2]
[330777431,1719774642980,-407.74,0.00013428,2]
[330777433,1719774642989,-151.0,0.00015,2]
[330777435,1719774642999,-151.0,0.00015,2]
[330777437,1719774643008,-407.74,0.00015692,2]
[330777439,1719774643018,-29920.12381992,0.00016969,2]
[330777445,1719774643061,-0.01122338,0.00016969,2]
[330777726,1719774645855,-1004.55867731,0.000139,2]
[330777733,1719774646066,-438.177622,0.000139,2]
[330778279,1719775774112,-171.75,0.00011787,2]
[330778291,1719775832175,-394.42,0.00012863,2]
[330778292,1719775832185,-383.13294364,0.000137,2]
[330778293,1719775832195,-425.50705636,0.000138,2]
[330778294,1719775832207,-574.49294364,0.000138,2]
[330778295,1719775832217,-235.2687,0.000138,2]
[330778296,1719775832226,-620.10900742,0.000138,2]
[330778297,1719775832236,-620.10900743,0.000138,2]
[330778298,1719775832246,-514.16,0.00013899,3]
[330778299,1719775832255,-52559.2292,0.000139,2]
[330778300,1719775832271,-200.24964919,0.000139,2]
[330778301,1719775832284,-334.34441524,0.000139,2]
[330778302,1719775832296,-7616.3701106,0.000139,2]
[330778303,1719775832308,-450.0,0.000139,2]
[330778304,1719775832320,-181.02431915,0.000139,2]
[330778305,1719775832333,-213.3712959,0.00013989,2]
[330778306,1719775832344,-514.16,0.00014009,3]
[330778307,1719775832357,-514.16,0.00014118,3]
[330778308,1719775832369,-514.16,0.00014228,3]
[330778309,1719775832380,-514.16,0.00014338,3]
[330778310,1719775832390,-514.16,0.00014447,3]
[330778311,1719775832402,-514.16,0.00014557,3]
[330778314,1719775832414,-514.16,0.00014666,3]
[330778316,1719775832426,-158.65,0.00014753,2]
[330778317,1719775832437,-250.0,0.00014766,2]
[330778318,1719775832448,-191.35,0.00014773,2]
[330778319,1719775832460,-514.16,0.00014776,3]
[330778320,1719775832472,-1000.0,0.0001478,2]
[330778321,1719775832484,-514.16,0.00014886,3]
[330778322,1719775832495,-336.62756721,0.00014966,2]
[330778323,1719775832507,-514.16,0.00014995,3]
[330778324,1719775832519,-5000.0,0.00015,2]
[330778325,1719775832530,-3967.8675886,0.00015,2]
[330778326,1719775832542,-622.7781919,0.00015,2]
[330778327,1719775832554,-1000.0,0.00015,2]
[330778328,1719775832567,-1000.0,0.00015,2]
[330778329,1719775832579,-1000.0,0.00015,2]
[330778330,1719775832595,-514.16,0.00015105,3]
[330778331,1719775832607,-394.42,0.00015126,2]
[330778332,1719775832619,-514.16,0.00015214,3]
[330778333,1719775832631,-1690.0,0.000153,5]
[330778334,1719775832644,-514.16,0.00015324,3]
[330778335,1719775832656,-155.0,0.00015335,4]
[330778336,1719775832669,-3576.0,0.000154,2]
[330778337,1719775832685,-514.16,0.00015433,3]
[330778338,1719775832699,-11031.02972998,0.00015535,2]
[330778339,1719775832711,-514.16,0.00015543,3]
[330778340,1719775832723,-514.16,0.00015653,3]
[330778341,1719775832735,-418.84,0.00015653,2]
[330778342,1719775832747,-418.84,0.00015653,2]
[330778343,1719775832759,-418.84,0.00015653,2]
[330778344,1719775832772,-564.68,0.00015653,2]
[330778345,1719775832785,-514.16,0.00015762,3]
[330778346,1719775832796,-514.16,0.00015872,3]
[330778347,1719775832808,-512.470643,0.0001589,2]
[330778348,1719775832819,-514.16,0.00015981,3]
[330778349,1719775832830,-1000.0,0.00016,2]
[330778350,1719775832841,-1000.0,0.00016,2]
[330778351,1719775832853,-1000.0,0.00016,2]
[330778352,1719775832865,-1000.0,0.00016,2]
[330778353,1719775832875,-1000.0,0.00016,2]
[330778354,1719775832887,-514.16,0.00016091,3]
[330778355,1719775832898,-514.16,0.00016201,3]
[330778356,1719775832909,-172.95,0.00016286,2]
[330778357,1719775832921,-514.16,0.0001631,3]
[330778358,1719775832934,-514.32,0.0001642,3]
[330778359,1719775832945,-1759.05412823,0.00016566,2]
[330778360,1719775832957,-1000.0,0.00016628,2]
[330778361,1719775832968,-512.470643,0.00016712,2]
[330778362,1719775832979,-263.28070068,0.00016808,2]
[330778363,1719775832992,-3391.7728628,0.00016848,2]
[330778364,1719775833003,-2908.35389433,0.00016869,2]
[330778365,1719775833015,-6680.42425097,0.00016869,2]
[330778366,1719775833027,-490.0,0.000169,2]
[330778367,1719775833040,-747.28270165,0.00016957,2]
[330778368,1719775833052,-218.435503,0.00016957,2]
[330778369,1719775833063,-311.7,0.00016959,3]
[330778370,1719775833075,-1084.4768,0.00016969,2]
[330778371,1719775833089,-500.0,0.00016969,3]
[330778372,1719775833100,-112617.98479148,0.00016969,2]
[330778373,1719775833114,-1230.78807392,0.00016969,2]
[330778374,1719775833126,-424.71363053,0.00016969,2]
[330778375,1719775833138,-4464.6722884,0.00016969,2]
[330778376,1719775833164,-251.58530048,0.00016969,2]
[330778377,1719775839117,-307.40360557,0.00016969,2]
[330778378,1719775839131,-1692.27854966,0.00016969,2]
[330778379,1719775839144,-304.42581623,0.00016969,2]
[330778380,1719775839158,-20612.5515836,0.00016969,2]
[330778381,1719775839172,-561.82928208,0.00016969,2]
[330778383,1719775839374,-370.27272899,0.00016969,2]
[330778385,1719775839388,-2239.85170588,0.00016969,2]
[330778387,1719775839400,-1239.78239568,0.00016969,2]
[330778389,1719775839412,-1000.0,0.00017,2]
[330778391,1719775839424,-1000.0,0.00017,2]
[330778393,1719775839436,-500.0,0.00017078,3]
[330778394,1719775839447,-528.19,0.00017144,2]
[330778396,1719775839459,-150.0,0.00017144,2]
[330778398,1719775839471,-305.26,0.00017144,2]
[330778399,1719775839482,-425.7,0.00017144,2]
[330778401,1719775839494,-150.0,0.00017144,2]
[330778403,1719775839506,-202.08,0.00017144,2]
[330778404,1719775839518,-150.0,0.00017144,2]
[330778406,1719775839529,-153.73,0.00017144,2]
[330778408,1719775839541,-164.78,0.00017144,2]
[330778410,1719775839552,-165.76,0.00017144,2]
[330778411,1719775839563,-467.2,0.00017144,2]
[330778413,1719775839574,-424.12,0.00017144,2]
[330778415,1719775839586,-150.0,0.00017144,2]
[330778416,1719775839600,-528.19,0.00017144,2]
[330778418,1719775839611,-164.78,0.00017144,2]
[330778420,1719775839623,-150.0,0.00017144,2]
[330778421,1719775839636,-150.0,0.00017144,2]
[330778423,1719775839647,-150.0,0.00017144,2]
[330778426,1719775839659,-150.0,0.00017144,2]
[330778429,1719775839669,-354.67,0.00017144,2]
[330778431,1719775839682,-294.04,0.00017144,2]
[330778434,1719775839694,-396.76,0.00017144,2]
[330778436,1719775839705,-164.78,0.00017144,2]
[330778437,1719775839718,-150.0,0.00017144,2]
[330778439,1719775839729,-150.0,0.00017144,2]
[330778441,1719775839740,-150.0,0.00017144,2]
[330778443,1719775839751,-150.0,0.00017144,2]
[330778445,1719775839763,-150.0,0.00017144,2]
[330778446,1719775839774,-354.67,0.00017144,2]
[330778448,1719775839786,-150.0,0.00017144,2]
[330778450,1719775839797,-150.0,0.00017144,2]
[330778452,1719775839809,-164.78,0.00017144,2]
[330778454,1719775839820,-354.67,0.00017144,2]
[330778455,1719775839831,-150.0,0.00017144,2]
[330778457,1719775839842,-353.63,0.00017144,2]
[330778459,1719775839853,-155.04,0.00017144,2]
[330778461,1719775839863,-300.0,0.00017144,2]
[330778463,1719775839875,-158.65,0.00017211,2]
[330778464,1719775839887,-2100.0,0.00017337,2]
[330778466,1719775839899,-394.42,0.0001739,2]
[330778468,1719775839910,-2908.35389425,0.00017484,2]
[330778470,1719775839921,-6680.42425095,0.00017484,2]
[330778472,1719775839932,-512.470643,0.00017534,2]
[330778473,1719775839942,-400.0,0.00017545,2]
[330778475,1719775839953,-150.0,0.00017562,2]
[330778477,1719775839965,-2948.6919384,0.00017632,2]
[330778479,1719775839979,-744.74833634,0.00017632,2]
[330778518,1719775840472,-528.37338659,0.00017632,2]
[330778520,1719775840486,-397.34954669,0.00017632,2]
[330778522,1719775840503,-528.5269001,0.00017632,2]
[330778524,1719775840517,-336.95756609,0.00017632,2]
[330778534,1719775840724,-628.48929735,0.00017632,2]
[330778535,1719775840736,-5000.0,0.00017632,2]
[330778536,1719775840747,-5000.0,0.00017632,2]
[330778537,1719775840758,-526.21157306,0.00017703,2]
[330778538,1719775840768,-363.08487796,0.00017866,2]
[330778539,1719775840780,-150.0,0.00017965,2]
[330778540,1719775840791,-226.31854935,0.00018,2]
[330778541,1719775840802,-370.47189794,0.00018,2]
[330778542,1719775840814,-1000.0,0.00018,2]
[330778543,1719775840825,-162.16071363,0.00018,2]
[330778545,1719775840836,-162.16071363,0.00018,2]
[330778546,1719775840848,-162.16071363,0.00018,2]
[330778548,1719775840860,-162.16071363,0.00018,2]
[330778550,1719775840871,-162.16071363,0.00018,2]
[330778552,1719775840883,-162.16071363,0.00018,2]
[330778554,1719775840894,-162.16071363,0.00018,2]
[330778557,1719775840906,-162.16071363,0.00018,2]
[330778559,1719775840917,-162.16071363,0.00018,2]
[330778561,1719775840927,-162.16071363,0.00018,2]
[330778564,1719775840947,-162.16071363,0.00018,2]
[330778566,1719775840964,-162.16071363,0.00018,2]
[330778569,1719775840976,-162.16071363,0.00018,2]
[330778571,1719775840989,-162.16071363,0.00018,2]
[330778573,1719775841000,-162.16071363,0.00018,2]
[330778575,1719775841012,-162.16071363,0.00018,2]
[330778577,1719775841024,-162.16071363,0.00018,2]
[330778579,1719775841035,-162.16071363,0.00018,2]
[330778582,1719775841047,-162.16071363,0.00018,2]
[330778584,1719775841058,-162.16071363,0.00018,2]
[330778586,1719775841071,-162.16071363,0.00018,2]
[330778588,1719775841083,-35.60160034,0.00018,2]
[330778877,1719775843931,-276.0,0.00016553,2]
[330778879,1719775843942,-570.50599989,0.00016969,2]
[330778881,1719775843955,-669.27639579,0.00016969,2]
[330778883,1719775843967,-126.55911329,0.00018,2]
[330778885,1719775843977,-162.16071363,0.00018,2]
[330778887,1719775843987,-162.16071363,0.00018,2]
[330778889,1719775843996,-162.16071363,0.00018,2]
[330778891,1719775844006,-162.16071363,0.00018,2]
[330778893,1719775844016,-162.16071363,0.00018,2]
[330778895,1719775844026,-162.16071363,0.00018,2]
[330778897,1719775844035,-162.16071363,0.00018,2]
[330778899,1719775844045,-162.16071363,0.00018,2]
[330778901,1719775844054,-162.16071363,0.00018,2]
[330778903,1719775844064,-162.16071363,0.00018,2]
[330778905,1719775844073,-162.16071363,0.00018,2]
[330778907,1719775844083,-162.16071363,0.00018,2]
[330778909,1719775844094,-162.16071363,0.00018,2]
[330778911,1719775844104,-162.16071363,0.00018,2]
[330778913,1719775844114,-162.16071363,0.00018,2]
[330778915,1719775844123,-162.16071363,0.00018,2]
[330778917,1719775844133,-162.16071363,0.00018,2]
[330778920,1719775844144,-162.16071363,0.00018,2]
[330778921,1719775844153,-162.16071363,0.00018,2]
[330778924,1719775844163,-162.16071363,0.00018,2]
[330778926,1719775844172,-162.16071363,0.00018,2]
[330778927,1719775844182,-162.16071363,0.00018,2]
[330778929,1719775844191,-162.16071363,0.00018,2]
[330778931,1719775844201,-162.16071363,0.00018,2]
[330778934,1719775844214,-162.16071363,0.00018,2]
[330778936,1719775844224,-162.16071363,0.00018,2]
[330778938,1719775844233,-162.16071363,0.00018,2]
[330778940,1719775844243,-162.16071363,0.00018,2]
[330778942,1719775844253,-162.16071363,0.00018,2]
[330778944,1719775844262,-613.3433341,0.00018009,2]
[330778946,1719775844272,-1415.68046159,0.00018098,2]
[330778948,1719775844284,-1492.67343266,0.00018098,2]
[330778950,1719775844294,-1248.99452818,0.00018098,2]
[330778952,1719775844306,-5431.42972277,0.00018098,2]
[330778954,1719775844315,-151.0,0.00018224,2]
[330778956,1719775844325,-165.74448838,0.00018356,2]
[330778958,1719775844337,-346.72615462,0.00018356,2]
[330778960,1719775844347,-1000.0,0.00018475,2]
[330778962,1719775844356,-363.08487791,0.00018514,2]
[330778964,1719775844366,-2908.35389425,0.00018713,2]
[330778966,1719775844378,-6642.39731577,0.00018713,2]
[330778971,1719775844414,-162.16071363,0.00018,2]
[330778973,1719775844425,-38.02693518,0.00018713,2]
[330778975,1719775844434,-194.39336464,0.00018759,2]
[330779157,1719775846279,-162.16071363,0.00018,2]
[330779159,1719775846290,-162.16071363,0.00018,2]
[330779161,1719775846301,-162.16071363,0.00018,2]
[330779163,1719775846311,-162.16071363,0.00018,2]
[330779165,1719775846320,-162.16071363,0.00018,2]
[330779167,1719775846330,-162.16071363,0.00018,2]
[330779169,1719775846340,-162.16071363,0.00018,2]
[330779171,1719775846350,-405.60663536,0.00018759,2]
[330779173,1719775846360,-527.44,0.00018804,2]
[330779175,1719775846371,-179.33,0.00018804,2]
[330779177,1719775846381,-151.0,0.0001882,2]
[330779179,1719775846392,-1741.15,0.00018849,30]
[330779181,1719775846403,-12292.30800058,0.000189,2]
[330779184,1719775846420,-477.47355398,0.000189,2]
[330779186,1719775846431,-3074.65,0.000189,2]
[330779188,1719775846443,-1829.7458757,0.000189,2]
[330779190,1719775846455,-843.8505457,0.000189,2]
[330779192,1719775846469,-1267.71601122,0.000189,2]
[330779194,1719775846479,-532.73319864,0.00019,3]
[330779197,1719775846490,-467.26680136,0.00019,3]
[330779199,1719775846499,-869.21124583,0.00019,3]
[330779200,1719775846511,-130.78875417,0.00019,3]
[330779201,1719775846521,-314.83124584,0.00019091,2]
[330779202,1719775846548,-162.16071363,0.00018,2]
[330779203,1719775846558,-162.16071363,0.00018,2]
[330779204,1719775846567,-401.3072274,0.00019091,2]
[330779205,1719775846577,-363.08487791,0.00019161,2]
[330779206,1719775846586,-500.0,0.00019178,2]
[330779207,1719775846599,-500.0,0.00019178,2]
[330779208,1719775846608,-500.0,0.00019178,2]
[330779209,1719775846618,-150.0,0.00019178,2]
[330779210,1719775846627,-250.0,0.00019178,2]
[330779211,1719775846638,-512.470643,0.00019178,2]
[330779212,1719775846647,-2908.35389425,0.00019327,2]
[330779213,1719775846656,-6680.42425095,0.00019327,2]
[330779214,1719775846666,-354.42237248,0.00019371,2]
[330779215,1719775846677,-151.0,0.00019415,2]
[330779216,1719775846687,-276.0,0.00019553,2]
[330779217,1719775846696,-394.42,0.00019654,2]
[330779218,1719775846707,-158.65,0.0001967,2]
[330779219,1719775846717,-150.0,0.00019683,2]
[330779220,1719775846726,-400.0,0.00019739,2]
[330779221,1719775846736,-172.95,0.00019742,2]
[330779223,1719775846746,-363.08487791,0.00019809,2]
[330779225,1719775846756,-215.0,0.000199,2]
[330779226,1719775846766,-1000.0,0.000199,2]
[330779228,1719775846776,-2908.35389425,0.00019942,2]
[330779230,1719775846786,-6680.42425095,0.00019942,2]
[330779232,1719775846796,-155.0,0.00019964,2]
[330779234,1719775846806,-1115.75542416,0.0002,2]
[330779236,1719775846816,-12760.47924032,0.0002,3]
[330779238,1719775846826,-6087.90664119,0.0002,2]
[330779240,1719775846835,-164.59348591,0.0002,3]
[330779242,1719775846845,-6276.62953969,0.0002,2]
[330779244,1719775846854,-188.14281244,0.0002,2]
[330779246,1719775846864,-155.0,0.0002,2]
[330779248,1719775846874,-867.43227348,0.0002,2]
[330779250,1719775846884,-339.36240495,0.0002,7]
[330779253,1719775846894,-327.11942367,0.0002,2]
[330779256,1719775846903,-1488.51574263,0.0002,2]
[330779259,1719775846913,-669.96579635,0.0002,2]
[330779262,1719775846923,-1278.53356093,0.0002,2]
[330779264,1719775846933,-155.0,0.0002,2]
[330779266,1719775846943,-1000.0,0.0002,4]
[330779268,1719775846953,-1000.0,0.0002,4]
[330779270,1719775846963,-1002.0,0.0002,4]
[330779272,1719775846974,-1000.0,0.0002,4]
[330779274,1719775846984,-306.26287443,0.0002,2]
[330779276,1719775846994,-149.66523114,0.0002,2]